Cogmind - Beta 9.2 @@@ ROGUE MODE // 2019.11.19 @ 14:39:15 Player: cptwinky Result: Destroyed by YI-UF0 with YI-UF0's Doublenader Performance ------------- Evolutions (0) 0 Regions Visited (2) 400 Robots Destroyed (30) 150 Value Destroyed (615) 615 Prototype IDs (0) 0 Alien Tech Used (0) 0 Bonus (0) 0 TOTAL SCORE: 1165 Bonus ------- None Cogmind --------- Core Integrity 0/250 Matter 280/300 Energy 99/100 System Corruption 0% Temperature Cool (0) Movement Rolling (110) Ox1 Location -10/Mines Parts ------- > --- POWER (1) -------- (None) > --- PROPULSION (2) --- Compact Wheel > --- UTILITY (2) ------ High-capacity Storage Unit > --- WEAPON (2) ------- (None) > --- INVENTORY (12) --- Compact Wheel Medium Armor Plating Medium Armor Plating Medium Armor Plating Hacking Suite Grenade Launcher Peak State ------------ > --- POWER ------------ Ion Engine > --- PROPULSION ------- Light Treads Light Treads > --- UTILITY ---------- High-capacity Storage Unit Medium Armor Plating > --- WEAPON ----------- EM Pulse Gun EM Pulse Gun > --- INVENTORY -------- Wheel Compact Wheel Compact Wheel Medium Armor Plating Hacking Suite EM Pulse Gun Grenade Launcher [Rating: 9] Favorites ----------- Power Light Ion Engine Engine Light Ion Engine Propulsion Light Treads Treads Light Treads Wheel Wheel Utility Small Storage Unit Storage Small Storage Unit Protection Medium Armor Plating Weapon EM Pulse Gun Energy Gun EM Pulse Gun Ballistic Gun Light Assault Rifle Launcher Grenade Launcher Build | -11 -10 -10 ------- Run | Scr Mat Min Slots Evolved . | . . . Power . | . . . Propulsion . | . . . Utility . | . . . Weapon . | . . . Parts Attached 26 | 6 16 4 Power 2 | 1 1 . Engine 2 | 1 1 . Core . | . . . Reactor . | . . . Propulsion 7 | 1 4 2 Treads 3 | . 3 . Leg . | . . . Wheel 4 | 1 1 2 Hover . | . . . Flight . | . . . Utility 4 | 1 3 . Device . | . . . Storage 3 | 1 2 . Processor . | . . . Hackware . | . . . Protection 1 | . 1 . Artifact . | . . . Weapon 13 | 3 8 2 Energy Gun 6 | 1 4 1 Energy Cannon . | . . . Ballistic Gun 5 | 2 3 . Ballistic Cannon . | . . . Launcher 2 | . 1 1 Special Weapon . | . . . Impact Weapon . | . . . Slashing Weapon . | . . . Piercing Weapon . | . . . Special Melee Weapon . | . . . Unidentified Prototypes . | . . . Parts Lost 9 | . 2 7 Power 2 | . 1 1 Propulsion 3 | . . 3 Utility 1 | . . 1 Weapon 3 | . 1 2 Highest Loss Streak 5 | . 1 5 Average Slot Usage (%) 88 | . 88 86 Engine 13 | . 14 12 Treads 22 | . 22 22 Wheel 4 | . 5 3 Storage 15 | . 15 14 Protection 2 | . 1 12 Energy Gun 18 | . 18 19 Ballistic Gun 8 | . 9 . Naked Turns . | . . . Heaviest Build 48 | 10 48 48 Greatest Support 40 | 10 40 40 Greatest Overweight (x) 4 | . 1 4 Average Overweight (x) . | . . 2 Largest Inventory Capacity 14 | 6 14 12 Average Capacity 7 | 5 7 12 Most Carried 9 | 6 9 8 Average Carried 6 | 3 6 7 Final Capacity 12 | 6 12 12 Final Carried 8 | 6 8 6 Class Distribution -------------------- 100% | Mutant Dominant Class ---------------- Mutant | -10/Materials Mutant | -10/Mines Resources | -11 -10 -10 ----------- Run | Scr Mat Min Matter Collected 475 | 262 163 50 Remotely . | . . . Salvage Created 940 | 56 751 133 Parts 55 | 1 48 6 Haulers Intercepted 2 | . 2 . Recyclers Shooed . | . . . Parts Field Recycled . | . . . Retrieved Matter . | . . . Parts Self-Destructed . | . . . Prevented . | . . . Kills | -11 -10 -10 ------- Run | Scr Mat Min Combat Hostiles Destroyed 21 | . 16 5 Guns 15 | . 12 3 AOE 6 | . 4 2 Classes Destroyed 7 | 1 6 . Worker 1 | . 1 . Hauler 2 | . 2 . Recycler 2 | 1 1 . Operator 2 | . 2 . Watcher 2 | . 2 . Swarmer 9 | . 6 3 Grunt 12 | . 10 2 Best Kill Streak 5 | 1 5 5 Combat Bots Only 5 | . 3 5 Max Kills in Single Turn 4 | 1 4 2 Gunslinging . | . . . Exploded 3 | . 3 2 Melee . | . . . Uniques/NPCs Destroyed . | . . . Combat | -11 -10 -10 -------- Run | Scr Mat Min Damage Taken 1098 | . 540 558 Core 257 | . 83 174 Absorbed by Shields . | . . . Core Remaining (%) 100 | 100 . . Volleys Fired 88 | 2 66 20 Largest 2 | 2 2 2 Hottest 80 | 70 80 80 Shots Fired 157 | 4 131 22 Gun 155 | 4 130 21 Cannon . | . . . Launcher 2 | . 1 1 Special . | . . . Kinetic 42 | 2 40 . Thermal 32 | 2 30 . Explosive 2 | . 1 1 Electromagnetic 81 | . 60 21 Robot Hit Streak 11 | 2 11 7 Robot Miss Streak 6 | 1 6 3 Penetration Max . | . . . Secondary Targets 2 | . 2 . Max Gunslinging Chain 1 | . 1 . Shots Hit Robots 94 | 2 79 13 Core Hits 51 | 2 42 7 Critical Hits . | . . . Critical Kills . | . . . Critical Parts Destroyed . | . . . Melee Attacks . | . . . Impact . | . . . Slashing . | . . . Piercing . | . . . Sneak Attacks . | . . . Combat Hostiles . | . . . Follow-up Attacks . | . . . Damage Inflicted 1624 | 20 1231 373 Guns 1132 | 20 928 184 Cannons . | . . . Explosions 492 | . 303 189 Melee . | . . . Ramming . | . . . Kinetic 185 | 7 178 . Thermal 410 | 13 360 37 Explosive 329 | . 177 152 Electromagnetic 700 | . 516 184 Impact . | . . . Slashing . | . . . Piercing . | . . . Highest Corruption . | . . . Average Corruption . | . . . Corruption Purged . | . . . Overload Shots . | . . . Overflow Damage . | . . . Projectiles . | . . . Explosions . | . . . Melee . | . . . Knockbacks . | . . . Impact . | . . . Kinetic . | . . . Secondary . | . . . Self-Inflicted Damage 84 | . 3 81 Shots 3 | . 1 2 Rammed . | . . . Targets Rammed . | . . . Kicked . | . . . Crushed . | . . . Highest Temperature 232 | 40 232 186 Average Temperature 65 | 23 62 86 Received Heat Transfer 324 | . 234 90 Siege Activations . | . . . Robots Corrupted . | . . . Combat Hostiles . | . . . Parts Fried 4 | . 3 1 Impact Corruptions . | . . . Robots Melted . | . . . Combat Hostiles . | . . . Parts Melted 2 | . 2 . Heat Transferred 890 | 37 803 50 Parts Sabotaged . | . . . Parts Stolen . | . . . Parts Stripped . | . . . Power Chain Reactions 3 | . 2 1 Missiles Intercepted . | . . . Alert | -11 -10 -10 ------- Run | Scr Mat Min Peak Influence 290 | 5 290 242 Average Influence 110 | 2 105 213 Maximum Alert Level 1 | . 1 1 Low Security (%) 89 | 100 96 12 Level 1 10 | . 3 87 Level 2 . | . . . Level 3 . | . . . Level 4 . | . . . Level 5 . | . . . High Security . | . . . Max Security . | . . . Squads Dispatched 7 | . 6 1 Investigation 4 | . 3 1 Extermination . | . . . Reinforcement 3 | . 3 . Assault . | . . . Garrison . | . . . Intercept . | . . . Construction Impeded . | . . . Haulers Reinforced . | . . . Stealth | -11 -10 -10 --------- Run | Scr Mat Min Distress Signals 3 | . 3 . Communications Jammed . | . . . Distress Signals . | . . . Times Spotted 38 | . 30 8 Peak Tracking Total 6 | . 6 4 Tactical Retreats 2 | . 1 1 Traps | -11 -10 -10 ------- Run | Scr Mat Min Traps Triggered . | . . . Indirectly . | . . . Trap Hack Attempts . | . . . Triggered . | . . . Disarmed . | . . . Reprogrammed . | . . . Reused . | . . . Traps Extracted . | . . . Installed . | . . . Triggered . | . . . Machines | -11 -10 -10 ---------- Run | Scr Mat Min Machines Disabled 2 | . 1 1 Max in Single Turn 1 | . 1 1 Machines Sabotaged . | . . . Garrisons Compromised . | . . . Overloaded Fab Kills . | . . . Fab Network Shutdowns . | . . . Hacking | -11 -10 -10 --------- Run | Scr Mat Min Machines Accessed 5 | . 4 1 Terminals 2 | . 1 1 Fabricators . | . . . Repair Stations 1 | . 1 . Recycling Units 2 | . 2 . Scanalyzers . | . . . Garrison Access . | . . . Total Hacks 18 | . 13 5 Successful 7 | . 6 1 Failed 10 | . 7 3 Catastrophic 1 | . 1 . Database Lockouts 1 | . . 1 Manual 10 | . 5 5 Terminals 8 | . 3 5 Fabricators . | . . . Repair Stations 3 | . 3 . Recycling Units 7 | . 7 . Scanalyzers . | . . . Garrison Access . | . . . Terminal Hacks 1 | . . 1 Part Schematic 1 | . . 1 Fabricator Hacks . | . . . Repair Station Hacks 2 | . 2 . Scan Component 1 | . 1 . Repair 1 | . 1 . Recycling Unit Hacks 2 | . 2 . Retrieve Components 2 | . 2 . Scanalyzer . | . . . Garrison Access Hacks . | . . . Unauthorized Hacks 4 | . 4 . Terminals . | . . . Fabricators . | . . . Repair Stations . | . . . Recycling Units 2 | . 2 . Tunnel 2 | . 2 . Scanalyzers . | . . . Garrison Access . | . . . Data Cores Recovered . | . . . Used . | . . . Hacking Detections 4 | . 3 1 Full Trace Events 1 | . 1 . Feedback Events . | . . . Feedback Blocked . | . . . Robot Schematics Acquired . | . . . Robots Built . | . . . Matter . | . . . Time . | . . . Total Robot Build Rating . | . . . Part Schematics Acquired 1 | . . 1 Parts Built . | . . . Matter . | . . . Time . | . . . Total Part Build Rating . | . . . Parts Repaired 1 | . 1 . Time 13 | . 13 . Parts Recycled . | . . . Recycled Matter . | . . . Retrieved Matter . | . . . Retrieved Components 12 | . 12 . Parts Scanalyzed . | . . . Part Schematics Acquired . | . . . Parts Damaged . | . . . Bothacking | -11 -10 -10 ------------ Run | Scr Mat Min Used RIF Installer . | . . . Robots Hacked . | . . . Non-combat . | . . . Combat . | . . . Robot Hacks Applied . | . . . Relay Couplers Released . | . . . Robots Rewired . | . . . Allies Hacked . | . . . Hacks Repelled . | . . . Allies | -11 -10 -10 -------- Run | Scr Mat Min Total Allies . | . . . Largest Group . | . . . Highest-Rated Group . | . . . Highest-Rated Ally . | . . . Total Orders . | . . . Ally Attacks . | . . . Total Damage . | . . . Kills . | . . . Allies Corrupted . | . . . Allies Melted . | . . . Intel | -11 -10 -10 ------- Run | Scr Mat Min Robot Analysis Total . | . . . Derelict Logs Recovered . | . . . Drone Launches . | . . . Drone Recoveries . | . . . Exploration | -11 -10 -10 ------------- Run | Scr Mat Min Turns Passed 1305 | 60 1133 112 Spaces Moved 484 | 52 389 43 Core 6 | 6 . . Treads 318 | . 297 21 Legs . | . . . Wheels 160 | 46 92 22 Hover . | . . . Flight . | . . . Fastest Speed 50 | 50 80 110 Average Speed 139 | 76 146 147 Slowest Speed 180 | 80 180 180 Overloaded Moves . | . . . Propulsion Burnouts . | . . . Robots Hopped . | . . . Cave-ins Triggered . | . . . Exploration Rate (%) 27 | 4 62 16 Regions Visited 2 Branch Regions 1 Pre-discovered Areas 2 | . 2 . Known Exits Taken . | . . . Unknown Exits Taken 2 | 1 1 . Scrap Searched . | . . . Spaces Dug . | . . . Terrain Destroyed 17 | . 7 10 Melee . | . . . Projectile . | . . . AOE 17 | . 7 10 Actions | -11 -10 -10 --------- Run | Scr Mat Min Total 959 | 65 825 69 Wait 343 | . 341 2 Move 482 | 51 388 43 Hop . | . . . Pick Up 12 | 6 6 . Fast Attach 11 | 5 6 . Attach 5 | . 3 2 Detach 2 | . 2 . Swap 10 | 1 7 2 Drop 6 | . 6 . Fire 88 | 2 66 20 Melee . | . . . Ram . | . . . Kick . | . . . Crush . | . . . Escape Stasis . | . . . Rewire . | . . . Trap . | . . . Miscellaneous . | . . . Route ------- -11/Scrapyard -10/Materials (discovered 3 exits: [*Mat] / *Min x2) -10/Mines History --------- Turn | Location | Event 17 | -11/Scrapyard | Discovered new exit (range 15) 61 | -11/Scrapyard | Entered Materials 309 | -10/Materials | Build established: Mutant 548 | -10/Materials | Discovered new exit (range 16) 847 | -10/Materials | Discovered new exit (range 8) 852 | -10/Materials | Discovered new exit (range 14) 1038 | -10/Materials | Repaired Hcp. Storage Unit 1194 | -10/Materials | Entered Mines 1211 | -10/Mines | Central database locked down 1260 | -10/Mines | Core integrity fell below 50% 1305 | -10/Mines | Core integrity fell below 20% 1306 | -10/Mines | Destroyed by YI-UF0 with YI-UF0's Doublenader Last Messages --------------- 01263_ Lgt. Treads destroyed. 01268_ U-05 Engineer builds a Wall. 01269_ Destroyed Sml. Laser. 01285_ Ion Engine fried. 01285_ G-34 Mercenary destroyed. 01290_ Acquired 50 matter. 01294_ Matter Pump disabled. 01294_ Med. Armor Plating destroyed. 01296_ Wheel destroyed. 01296_ EM Pulse Gun destroyed. 01298_ U-05 Engineer lays Concrete. 01298_ Terminal disabled. 01298_ Ion Engine destroyed. 01299_ The unstable cave ceiling collapses. 01299_ U-05 Engineer lays Concrete. 01300_ The unstable cave ceiling collapses. 01300_ U-05 Engineer lays Concrete. 01300_ Lgt. Treads destroyed. 01302_ R-06 Scavenger collects Lgt. Ion Engine. 01304_ The unstable cave ceiling collapses. Map ----- +----------------------------------------------------+ | | | | | ?????????????????????????????????????????????????? | | ?????????????????????????????????????????????????? | | ?????????????????????????????????????????????????? | | ?????????????????????????????????????????????????? | | ?????????????????????????????????????????????????? | | ?????????????????????????????????????????????????? | | ?????????????????????????????????????????????????? | | ?????????????????????????????????????????????????? | | ?????????????????????????????????????????????????? | | ?????????????????????????#???????????????????????? | | ????????????????????????? ???????????????????????? | | ???????????????????????? ??????? ??????????????? | | ???????????????????????? ??????# ????????????? | | ???????????????????????? ????## #????????????? | | ??????????????????????? ???# #????????????? | | ???????????????????????? ### #????????????? | | ???????????????????????? #????????????? | | ????????????????????????? #????????????? | | ????????????????????????? #????????????? | | ?????????????????????????# #?????????????? | | ?????????????????????##### #?????????????? | | ?????????????????????? #?????????????? | | ???????????????????????# #??????????????? | | ????????????????????????#@ ##?????????????? | | ???????????????????????## #?????????????? | | ???????????????????????# g #?????????????? | | ??????????????????????## ##?????????????? | | ?????????????????????## ##??????????????? | | ?????????????????????# #???????????????? | | ?????????????????????# " #???????????????? | | ?????????????????????# "" #???????????????? | | ?????????????????????## "" ##??????????????? | | ??????????????????????## #########??????? | | ???????????????????????## #??????? | | ????????????????????????### # * #??#???? | | ??????????????????????????### ### [% ## ## | | ????????????????????????????# #??# %% "" | | ????????????????????????????# #??# [ " | | ????????????????????????????# #??# ### # ? | | ????????????????????????????# #??# #??????? | | ????????????????????????????# #??#### #######????? | | ????????????????????????????# ####??# #????? | | ????????????????????????????# #??# ##### #????? | | ????????????????????????????#### ##?# ###????????? | | ??????????????????????????????#" "### ##???????? | | ?????????????????????????????# "%= # #???????? | | ?????????????????????????????# " ### #???????? | | ?????????????????????????????### #???????? | +----------------------------------------------------+ Best States ------------- Heat Dissipation 25 Energy Generation 10 Energy Capacity 250 Matter Stores 300 Matter Capacity 300 Sight Range 16 Terrain Scan Density 10 Armor Coverage 225 Evasion (%) 44 Recoil Reduction 2 Item Schematics ----------------- Hcp. Storage Unit | -10/Mines | Hacked Robot Schematics ------------------ None Fabricated ------------ Nothing Alien Tech Used ----------------- None Achievements -------------- None Challenges ------------ None Game ------ Seed GuidedGatlingRedirector Manual? 0 Play Time 00:08:40 Cumulative 405.7 hours Start 2019.11.19 @ 14:31:49 End 2019.11.19 @ 14:39:15 Sessions 1 Manual Loads 0 Difficulty Rogue Special Mode None Game No. 313 Rogue 309 Adventurer 4 Explorer 0 Win Type - Total 31 Types 25/2/1/1/2/0/0 Lore% 92 Gallery% 94 Achievement% 87 Wizard Run 0 Options --------- ASCII 0 Keyboard 0 Movement Vi Keybinds 0 Fullscreen 0 Font 16/Terminus Map View 76x50 Tactical HUD 1 Map Filters NONE Filters NONE Steam 1 RUN: 1f885d0c-b5c5-46f9-b888-2696e9da2c45